bitfinex/quotes_BTCUSD_20240717
["timestamp","ask_amount","ask_price","bid_price","bid_amount"]
[1721184209131,0.17374029,65961.0,65960.0,1.49911921]
[1721184209510,0.1473,65961.0,65960.0,1.48762293]
[1721184209701,0.17373636,65961.0,65960.0,1.49911338]
[1721184209901,0.1473,65961.0,65960.0,1.49911338]
[1721184210129,0.1473,65961.0,65960.0,1.80232738]
[1721184211601,0.1473,65961.0,65960.0,1.49911338]
[1721184212039,0.1473,65961.0,65960.0,1.80232738]
[1721184212244,0.1473,65961.0,65960.0,1.19589938]
[1721184212482,0.1473,65961.0,65960.0,1.17189396]
[1721184212483,0.17371022,65961.0,65960.0,1.17189396]
[1721184212915,0.17371022,65961.0,65960.0,1.01928696]
[1721184213467,0.17371022,65961.0,65960.0,1.03738967]
[1721184215296,0.17371022,65961.0,65960.0,0.83046754]
[1721184215488,0.1737036,65961.0,65960.0,0.8304713]
[1721184217947,0.1737036,65961.0,65960.0,0.1304713]
[1721184218568,0.1737036,65961.0,65960.0,0.00458793]
[1721184218737,0.1737036,65961.0,65960.0,0.13047632]
[1721184218940,0.1737036,65961.0,65960.0,0.12588839]
[1721184219153,0.1737036,65961.0,65960.0,0.1310646]
[1721184220857,0.1737036,65961.0,65960.0,0.8310646]
[1721184222538,0.1088036,65961.0,65960.0,0.8310646]
[1721184222930,0.1088036,65961.0,65960.0,0.9826716]
[1721184223513,0.0264036,65961.0,65960.0,1.5890996]
[1721184223723,0.00837,65963.0,65962.0,0.303204]
[1721184223924,0.03473602,65963.0,65962.0,1.30369439]
[1721184224124,0.17603602,65963.0,65962.0,0.83106061]
[1721184224326,0.17603602,65963.0,65962.0,0.98266261]
[1721184225087,0.1760293,65963.0,65962.0,1.15997822]
[1721184225287,0.1134293,65963.0,65962.0,1.89226282]
[1721184225489,0.1134293,65963.0,65962.0,1.91526282]
[1721184226367,0.1134293,65963.0,65962.0,1.91726282]
[1721184226586,0.00837,65963.0,65962.0,2.53544856]
[1721184226770,0.00837,65963.0,65962.0,3.18007641]
[1721184227006,0.00837,65963.0,65962.0,2.77624283]
[1721184227212,0.00837,65963.0,65962.0,3.17521609]
[1721184227503,0.00837,65963.0,65962.0,3.17797452]
[1721184227675,0.00837,65963.0,65962.0,3.06028593]
[1721184227902,0.00837,65963.0,65962.0,3.21357681]
[1721184228091,0.00837,65963.0,65962.0,3.06021538]
[1721184228271,0.00837,65963.0,65962.0,3.21338755]
[1721184228477,0.00837,65963.0,65962.0,3.13187255]
[1721184228700,0.00837,65963.0,65962.0,2.99583608]
[1721184228943,0.00837,65963.0,65962.0,2.42497491]
[1721184229138,0.00837,65963.0,65962.0,2.41897491]
[1721184229371,0.00837,65963.0,65962.0,2.43197491]
[1721184229822,0.00837,65963.0,65962.0,2.41897491]
[1721184230082,0.00837,65963.0,65962.0,2.43697491]
[1721184230331,0.00837,65963.0,65962.0,2.37637491]
[1721184230565,0.00837,65963.0,65962.0,2.38637491]
[1721184230806,0.00837,65963.0,65962.0,1.17987176]
[1721184231031,0.00837,65963.0,65962.0,1.399821]
[1721184231297,0.00837,65963.0,65962.0,1.68904809]
[1721184231467,0.00837,65963.0,65962.0,1.70304809]
[1721184232331,0.00837,65963.0,65962.0,1.71704809]
[1721184232537,0.00837,65963.0,65962.0,1.74004809]
[1721184232737,0.00837,65963.0,65962.0,1.75004809]
[1721184232947,0.00837,65963.0,65962.0,1.73604809]
[1721184233129,0.00837,65963.0,65962.0,1.74104809]
[1721184233345,0.00837,65963.0,65962.0,1.74104918]
[1721184234343,0.00837,65963.0,65962.0,1.61518222]
[1721184234666,0.00837,65963.0,65962.0,1.74105036]
[1721184236911,0.15157,65963.0,65962.0,1.74105036]
[1721184237115,0.15157,65963.0,65962.0,1.43784636]
[1721184237313,0.15157,65963.0,65962.0,0.86004036]
[1721184237527,0.15157,65963.0,65962.0,0.73417222]
[1721184237528,0.60637,65963.0,65962.0,0.73417222]
[1721184237730,0.63270074,65963.0,65962.0,0.73417222]
[1721184238123,0.63270074,65963.0,65962.0,0.729]
[1721184238478,0.63270074,65963.0,65962.0,0.71013804]
[1721184239130,0.63270074,65963.0,65962.0,0.70513804]
[1721184239343,0.63270074,65963.0,65962.0,0.70613804]
[1721184240325,0.17790074,65963.0,65962.0,0.70613804]
[1721184240553,0.15157,65963.0,65962.0,0.70613804]
[1721184240673,0.17799685,65963.0,65962.0,0.70613804]
[1721184241271,0.32959685,65963.0,65962.0,0.70613804]
[1721184241471,0.17799685,65963.0,65962.0,0.70613804]
[1721184242992,0.17788956,65963.0,65962.0,0.70613804]
[1721184243207,0.15157,65963.0,65962.0,0.70613804]
[1721184243408,0.17788922,65963.0,65962.0,0.70613804]
[1721184244229,0.11498922,65963.0,65962.0,1.16094404]
[1721184244431,0.08867,65963.0,65962.0,1.28682992]
[1721184244630,0.08867,65963.0,65962.0,0.98362592]
[1721184245547,0.00837,65963.0,65962.0,1.58903392]
[1721184245934,0.00837,65963.0,65962.0,1.28582992]
[1721184246151,0.00837,65963.0,65962.0,1.15994404]
[1721184246278,0.00837,65963.0,65962.0,1.28682238]
[1721184246859,0.00837,65963.0,65962.0,1.28982238]
[1721184247006,0.00837,65963.0,65962.0,1.28582238]
[1721184247624,0.00837,65963.0,65962.0,0.83101638]
[1721184247625,0.81075174,65963.0,65962.0,0.83101638]
[1721184247819,0.81075174,65963.0,65933.0,0.68095676]
[1721184247820,0.1432,65944.0,65933.0,0.68095676]
[1721184248025,0.02625783,65943.0,65938.0,0.46304871]
[1721184248229,0.151653,65940.0,65933.0,0.000924]
[1721184248564,0.02625783,65939.0,65933.0,0.000924]
[1721184248698,0.303298,65942.0,65933.0,0.000924]
[1721184248699,0.02625783,65938.0,65933.0,0.000924]
[1721184249041,0.02625783,65937.0,65933.0,0.000924]
[1721184249260,0.151654,65940.0,65933.0,0.017924]
[1721184249385,0.03546162,65939.0,65933.0,0.006924]
[1721184249584,0.03546162,65939.0,65933.0,0.014924]
[1721184249987,0.03546162,65939.0,65933.0,0.000924]
[1721184250284,0.151655,65939.0,65933.0,0.014924]
[1721184250501,0.151688,65925.0,65923.0,0.060753]
[1721184250706,0.137,65924.0,65916.0,0.151706]
[1721184251042,0.151702,65919.0,65911.0,0.151719]
[1721184251244,0.151698,65921.0,65911.0,0.7]
[1721184251418,0.151698,65921.0,65913.0,0.151714]
[1721184253097,0.154698,65921.0,65913.0,0.151714]
[1721184253501,0.152698,65921.0,65913.0,0.151714]
[1721184253703,0.151698,65921.0,65913.0,0.151714]
[1721184254322,0.151698,65921.0,65910.0,0.776542]
[1721184254323,0.1517,65920.0,65911.0,0.151717]
[1721184254524,0.0799,65917.0,65912.0,0.1]
[1721184254725,0.0799,65917.0,65913.0,0.001]
[1721184254726,0.151711,65915.0,65913.0,0.001]
[1721184255277,0.151711,65915.0,65913.0,0.002]
[1721184255690,0.151711,65915.0,65913.0,0.001924]
[1721184255882,0.152711,65915.0,65913.0,0.001924]
[1721184256219,0.152711,65915.0,65913.0,0.000924]
[1721184256663,0.152711,65915.0,65913.0,0.002924]
[1721184256872,0.151712,65914.0,65913.0,0.002924]
[1721184257068,0.152711,65915.0,65913.0,0.002924]
[1721184257268,0.001,65915.0,65913.0,0.002924]
[1721184258065,0.216709,65916.0,65913.0,0.002924]
[1721184258694,0.065,65916.0,65913.0,0.002924]
[1721184258898,0.0799,65917.0,65913.0,0.002924]
[1721184259068,0.0799,65917.0,65914.0,0.00422732]
[1721184259869,0.002,65916.0,65914.0,0.00422732]
[1721184260616,0.002,65916.0,65914.0,0.15593932]
[1721184261227,0.365421,65915.0,65914.0,0.00422732]
[1721184261431,0.517131,65915.0,65914.0,0.00422732]
[1721184261571,0.517131,65915.0,65913.0,0.000924]
[1721184261572,0.151712,65914.0,65913.0,0.000924]
[1721184261980,0.062,65915.0,65913.0,0.000924]
[1721184262723,0.063,65915.0,65913.0,0.000924]
[1721184262930,0.214711,65915.0,65913.0,0.000924]
[1721184263168,0.214711,65915.0,65913.0,0.003924]
[1721184263288,0.213711,65915.0,65913.0,0.003924]
[1721184263988,0.00277097,65938.0,65916.0,0.151708]
[1721184263989,0.0764,65922.0,65916.0,0.151708]
[1721184264190,0.303363,65928.0,65927.0,0.151682]
[1721184264191,0.0764,65928.0,65927.0,0.151682]
[1721184264420,0.0764,65928.0,65925.0,0.455058]
[1721184264587,0.0764,65928.0,65926.0,0.151684]
[1721184265234,0.0764,65928.0,65924.0,0.151688]
[1721184265412,0.608341,65928.0,65927.0,0.001]
[1721184265605,0.608341,65928.0,65907.0,0.151727]
[1721184265606,0.1403,65915.0,65907.0,0.151727]
[1721184265813,0.1403,65915.0,65908.0,0.56304871]
[1721184266036,0.1403,65915.0,65910.0,0.15172]
[1721184266240,0.1403,65915.0,65903.0,0.4731]
[1721184266241,0.455137,65914.0,65903.0,0.776575]
[1721184266441,0.151727,65908.0,65898.0,0.303497]
[1721184266595,0.76123174,65914.0,65895.0,0.0614]
[1721184266596,0.0813,65909.0,65902.0,0.151739]
[1721184267140,0.233025,65909.0,65901.0,0.151741]
[1721184267346,0.21888174,65908.0,65891.0,0.122183]
[1721184267558,0.21888174,65908.0,65890.0,0.4731]
[1721184267559,0.151747,65900.0,65893.0,0.151759]
[1721184267883,0.1477,65904.0,65892.0,0.303526]
[1721184268085,0.45381774,65904.0,65896.0,0.151752]
[1721184268708,0.45381774,65904.0,65903.0,0.151738]
[1721184268709,0.1477,65904.0,65903.0,0.151738]
[1721184268899,0.1477,65904.0,65890.0,0.4731]
[1721184268900,0.1477,65904.0,65893.0,0.001]
[1721184269111,0.1477,65904.0,65902.0,0.001]
[1721184269341,0.30611974,65903.0,65902.0,0.001]
[1721184269682,0.30611974,65903.0,65896.0,0.151753]
[1721184271090,0.0801,65902.0,65893.0,0.303522]
[1721184271265,0.0801,65902.0,65897.0,0.15175]
[1721184271467,0.0801,65902.0,65898.0,0.151748]
[1721184271689,0.0801,65902.0,65896.0,0.151753]
[1721184272408,0.0811,65902.0,65894.0,0.303516]
[1721184272608,0.0811,65902.0,65886.0,0.2]
[1721184272609,0.0811,65902.0,65901.0,0.455227]
[1721184272854,0.0801,65902.0,65901.0,0.455227]
[1721184273055,0.0811,65902.0,65901.0,0.455227]
[1721184273260,0.002,65902.0,65901.0,0.455227]
[1721184273456,0.001,65902.0,65901.0,0.455227]
[1721184273631,0.0804,65906.0,65901.0,0.455227]
[1721184274059,0.001,65902.0,65901.0,0.455227]
[1721184274799,0.002,65902.0,65901.0,0.455227]
[1721184274982,0.001,65902.0,65901.0,0.455227]
[1721184275208,0.0804,65906.0,65902.0,0.303478]
[1721184275410,0.0804,65906.0,65903.0,0.1259955]
[1721184275528,0.001,65906.0,65905.0,0.758667]
[1721184275728,0.001,65906.0,65905.0,0.1259955]
[1721184275928,0.0639,65909.0,65905.0,0.2777275]
[1721184276172,0.0639,65909.0,65906.0,0.12599102]
[1721184276343,0.006,65906.0,65905.0,0.151732]
[1721184276559,0.006,65906.0,65905.0,0.27772121]
[1721184277339,0.006,65906.0,65905.0,0.151732]
[1721184277605,0.006,65906.0,65905.0,0.27772199]
[1721184277815,0.0639,65909.0,65905.0,0.27772199]
[1721184277980,0.0639,65909.0,65906.0,0.12598999]
[1721184278189,0.0639,65909.0,65905.0,0.153732]
[1721184278190,0.0639,65909.0,65907.0,0.12598999]
[1721184278389,0.0639,65909.0,65908.0,0.12598999]
[1721184278754,0.0649,65909.0,65908.0,0.12598999]
[1721184278973,0.001,65909.0,65908.0,0.12598999]
[1721184279178,0.011,65909.0,65908.0,0.27771599]
[1721184279378,0.01,65909.0,65908.0,0.12598999]
[1721184279601,0.01,65909.0,65908.0,0.27771599]
[1721184279795,0.011,65909.0,65908.0,0.12698999]
[1721184280354,0.04555412,65909.0,65908.0,0.12598999]
[1721184280580,0.01,65909.0,65908.0,0.151726]
[1721184280771,0.011,65909.0,65908.0,0.27871386]
[1721184280996,0.011,65909.0,65908.0,0.152726]
[1721184281330,0.011,65909.0,65908.0,0.27971299]
[1721184281331,0.017,65909.0,65908.0,0.27971299]
[1721184281745,0.017,65909.0,65908.0,0.58316599]
[1721184281746,0.007,65909.0,65908.0,0.58316599]
[1721184281944,0.011,65909.0,65908.0,0.88661899]
[1721184282123,0.011,65909.0,65908.0,1.09375381]
[1721184282323,0.005,65909.0,65908.0,0.88561899]
[1721184282581,0.006,65909.0,65908.0,0.88461899]
[1721184282990,0.007,65909.0,65908.0,0.88461899]
[1721184284084,0.007,65909.0,65908.0,0.88461412]
[1721184284599,0.007,65909.0,65908.0,1.4805989]
[1721184284835,0.007,65909.0,65908.0,1.46243715]
[1721184285530,0.001,65909.0,65908.0,1.46243715]
[1721184285766,0.04904875,65919.0,65918.0,0.151703]
[1721184285982,0.08448412,65919.0,65918.0,0.58109212]
[1721184286195,0.03543537,65919.0,65918.0,0.58109212]
[1721184286354,0.403323,65937.0,65918.0,0.58109212]
[1721184286355,0.0785,65927.0,65919.0,0.0613]
[1721184286556,0.03539237,65926.0,65925.0,0.758437]
[1721184286759,0.03539036,65931.0,65928.0,0.151678]
[1721184286924,0.03539035,65931.0,65929.0,0.12598212]
[1721184287138,0.0353905,65930.0,65928.0,0.151678]
[1721184287339,0.1386,65932.0,65929.0,0.1259565]
[1721184287639,0.03531849,65931.0,65930.0,0.1259565]
[1721184289574,0.04731849,65931.0,65930.0,0.1269565]
[1721184289946,0.03631849,65931.0,65930.0,0.1269565]
[1721184290207,0.04431849,65931.0,65930.0,0.1279565]
[1721184290380,0.04266865,65931.0,65930.0,0.12795654]
[1721184290619,0.04166865,65931.0,65930.0,0.001]
[1721184290780,0.04266865,65931.0,65930.0,0.002]
[1721184292146,0.87344518,65931.0,65930.0,0.002]
[1721184292336,1.17679218,65931.0,65930.0,0.002]
[1721184292888,1.17679218,65931.0,65911.0,0.11815053]
[1721184292889,0.151688,65925.0,65916.0,0.303412]
[1721184293089,0.303368,65927.0,65919.0,0.151699]
[1721184293090,0.03366865,65924.0,65919.0,0.151699]
[1721184293296,0.03366865,65923.0,65920.0,0.1259632]
[1721184293495,0.151685,65926.0,65919.0,0.151699]
[1721184293686,0.03645652,65925.0,65920.0,0.12596318]
[1721184293888,0.03368555,65924.0,65921.0,0.12596318]
[1721184294106,0.03368555,65924.0,65922.0,0.12596318]
[1721184294281,0.03368555,65924.0,65923.0,0.12596318]
[1721184295143,0.03568555,65924.0,65923.0,0.12596318]
[1721184295519,0.03568555,65924.0,65923.0,0.455076]
[1721184295721,0.03568555,65924.0,65923.0,0.58103822]
[1721184295951,0.002,65924.0,65923.0,0.88442222]
[1721184296127,0.004,65924.0,65923.0,0.88442222]
[1721184296664,0.004,65924.0,65923.0,0.75846]
[1721184296665,0.005,65924.0,65923.0,0.75846]
[1721184296808,0.005,65924.0,65923.0,0.88441619]
[1721184297012,0.001,65924.0,65923.0,0.88441619]
[1721184297861,0.05232332,65933.0,65928.0,0.151679]
[1721184298036,0.00277097,65931.0,65928.0,0.151679]
[1721184298230,0.03363787,65930.0,65928.0,0.151679]
[1721184298432,0.03363787,65929.0,65928.0,0.151679]
[1721184298635,0.03363787,65932.0,65928.0,0.151679]
[1721184298837,0.03363787,65931.0,65928.0,0.151679]
[1721184299041,0.03363787,65930.0,65928.0,0.152679]
[1721184299238,0.03263144,65929.0,65928.0,0.152679]
[1721184299489,0.00277097,65933.0,65928.0,0.151679]
[1721184299709,0.00277097,65933.0,65925.0,0.303373]
[1721184299901,0.002,65929.0,65927.0,0.151681]
[1721184300368,0.15638174,65929.0,65919.0,0.0625]
[1721184300518,0.15638174,65929.0,65916.0,0.474507]
[1721184300519,0.15169,65924.0,65920.0,0.12595556]
[1721184300756,0.303366,65927.0,65916.0,1.182707]
[1721184300757,0.00277097,65925.0,65919.0,0.1517]
[1721184301345,0.00277097,65925.0,65916.0,1.182707]
[1721184301346,0.00277097,65925.0,65920.0,0.151698]
[1721184301983,0.00277097,65925.0,65918.0,0.303405]
[1721184302220,0.00277097,65926.0,65922.0,0.151692]
[1721184302430,0.00277097,65927.0,65922.0,0.151692]
[1721184302577,0.15715271,65927.0,65921.0,0.303391]
[1721184302742,0.15715271,65927.0,65922.0,0.151693]
[1721184302941,0.15438174,65927.0,65922.0,0.151693]
[1721184303151,0.1419,65928.0,65926.0,0.151684]
[1721184303152,0.0789,65928.0,65926.0,0.151684]
[1721184303365,0.0789,65928.0,65924.0,0.455062]
[1721184303636,0.001,65927.0,65924.0,0.455062]
[1721184303847,0.001,65927.0,65925.0,0.151686]
[1721184304042,0.0789,65928.0,65925.0,0.151686]
[1721184304272,0.151671,65932.0,65924.0,0.303375]
[1721184304273,0.151671,65932.0,65926.0,0.299685]
[1721184304506,0.06806231,65940.0,65927.0,0.151682]
[1721184304507,0.001,65928.0,65927.0,0.151682]
[1721184304941,0.001,65928.0,65927.0,0.455047]
[1721184305589,0.005,65928.0,65927.0,1.061777]
[1721184305848,0.004,65928.0,65927.0,1.061777]
[1721184306064,0.005,65928.0,65927.0,1.061777]
[1721184306279,0.006,65928.0,65927.0,1.18771803]
[1721184306709,0.005,65928.0,65927.0,1.18771803]
[1721184306920,0.005,65928.0,65927.0,1.18871803]
[1721184307358,0.005,65928.0,65927.0,1.21171803]
[1721184307565,0.00277097,65940.0,65936.0,0.151661]
[1721184307961,0.00277097,65940.0,65934.0,0.303331]
[1721184308182,0.00277097,65940.0,65935.0,0.151664]
[1721184308391,0.00277097,65940.0,65934.0,0.303331]
[1721184308392,0.00277097,65940.0,65936.0,0.151661]
[1721184308753,0.00277097,65940.0,65934.0,0.303331]
[1721184308754,0.00277097,65940.0,65938.0,0.151656]
[1721184308930,0.00277097,65941.0,65938.0,0.151656]
[1721184309160,0.15438174,65940.0,65934.0,0.001]
[1721184309389,0.151663,65936.0,65934.0,0.001]
[1721184309586,0.303348,65931.0,65921.0,0.0637]
[1721184309784,0.303348,65931.0,65911.0,0.11813929]
[1721184309785,0.1444,65929.0,65922.0,0.12594983]
[1721184310084,0.151691,65924.0,65917.0,0.151704]
[1721184310286,0.151691,65924.0,65915.0,0.303416]
[1721184310287,0.151686,65926.0,65918.0,0.12595442]
[1721184310413,0.151689,65925.0,65918.0,0.151703]
[1721184310611,0.30614097,65926.0,65919.0,0.12595841]
[1721184310612,0.00277097,65926.0,65919.0,0.12595841]
[1721184310818,0.15438174,65928.0,65921.0,0.151695]
[1721184311084,0.00277097,65927.0,65924.0,0.151689]
[1721184311275,0.1454,65929.0,65924.0,0.151689]
[1721184311487,0.1454,65929.0,65922.0,0.303386]
[1721184311688,0.297079,65929.0,65922.0,0.151692]
[1721184311981,0.00477097,65928.0,65922.0,0.151692]
[1721184312201,0.002,65928.0,65923.0,0.151691]
[1721184312386,0.1454,65929.0,65925.0,0.151687]
[1721184312586,0.1444,65929.0,65925.0,0.151687]
[1721184312789,0.004,65928.0,65924.0,0.151689]
[1721184313409,0.004,65929.0,65927.0,0.151682]
[1721184313785,0.009,65929.0,65927.0,0.151682]
[1721184313984,0.005,65929.0,65927.0,0.151682]
[1721184314154,0.001,65928.0,65927.0,0.151682]
[1721184314581,0.003,65928.0,65927.0,0.151682]
[1721184315393,0.004,65928.0,65927.0,0.151682]
[1721184315591,0.151685,65926.0,65916.0,1.247007]
[1721184315789,0.151685,65926.0,65920.0,0.151698]
[1721184315989,0.151685,65926.0,65916.0,1.247007]
[1721184315990,0.0761,65926.0,65921.0,0.1259569]
[1721184316212,0.151691,65924.0,65917.0,0.151704]
[1721184316529,0.151691,65924.0,65918.0,0.12596102]
[1721184316703,0.06307097,65923.0,65919.0,0.12596102]
[1721184316888,0.0603,65923.0,65920.0,0.12596102]
[1721184317085,0.0603,65923.0,65917.0,0.151704]
[1721184317288,0.211992,65923.0,65920.0,0.001]
[1721184317673,0.00277097,65922.0,65917.0,0.151704]
[1721184317879,0.211992,65923.0,65919.0,0.004]
[1721184318077,0.211992,65923.0,65920.0,0.1259631]
[1721184318276,0.37947,65926.0,65918.0,0.151703]
[1721184318277,0.151689,65925.0,65918.0,0.151703]
[1721184318479,0.00277097,65924.0,65920.0,0.004]
[1721184318694,0.00277097,65924.0,65921.0,0.12596234]
[1721184318918,0.00277097,65924.0,65916.0,1.182707]
[1721184318919,0.151692,65923.0,65916.0,1.182707]
[1721184319128,0.15446597,65922.0,65917.0,0.12596637]
[1721184319338,0.227787,65926.0,65918.0,0.12596637]
[1721184319549,0.151687,65925.0,65919.0,0.12596637]
[1721184319778,0.15446097,65924.0,65920.0,0.12596637]
[1721184320017,0.15446097,65924.0,65921.0,0.12596637]
[1721184320255,0.227787,65926.0,65922.0,0.12596637]
[1721184320480,0.227787,65926.0,65919.0,0.155701]
[1721184320481,0.227787,65926.0,65919.0,0.152625]
[1721184320708,0.00277097,65925.0,65920.0,0.12595831]
[1721184320931,0.227787,65926.0,65921.0,0.12595935]
[1721184321203,0.00277097,65925.0,65922.0,0.12595935]
[1721184321429,0.227787,65926.0,65923.0,0.12595935]
[1721184321634,0.227787,65926.0,65922.0,0.001]
[1721184321839,0.227787,65926.0,65923.0,0.12595691]
[1721184322037,0.227787,65926.0,65921.0,0.001]
[1721184322239,0.227787,65926.0,65922.0,0.1259571]
[1721184322479,0.00277097,65925.0,65923.0,0.1259571]
[1721184322741,0.00277097,65925.0,65921.0,0.001]
[1721184322965,0.229787,65926.0,65922.0,0.12595784]
[1721184323160,0.229787,65926.0,65923.0,0.12595784]
[1721184323412,0.227787,65926.0,65920.0,0.151698]
[1721184323574,0.00377097,65925.0,65921.0,0.12595794]
[1721184323782,0.001,65925.0,65923.0,0.001]
[1721184324189,0.227785,65926.0,65923.0,0.001]
[1721184324386,0.00277097,65925.0,65923.0,0.001]
[1721184324539,0.15169,65924.0,65919.0,0.000924]
[1721184324747,0.599382,65922.0,65921.0,0.002]
[1721184325144,0.455097,65920.0,65919.0,0.000924]
[1721184325352,0.758495,65920.0,65919.0,0.000924]
[1721184326932,0.91287674,65920.0,65919.0,0.000924]
[1721184327435,0.91287674,65920.0,65919.0,0.001924]
[1721184327436,1.35827474,65920.0,65919.0,0.001924]
[1721184327688,1.56022813,65920.0,65919.0,0.001924]
[1721184327880,1.56022813,65920.0,65919.0,0.002924]
[1721184327881,1.59094138,65920.0,65919.0,0.002924]
[1721184327996,1.47737513,65920.0,65919.0,0.002924]
[1721184328643,1.56827449,65920.0,65919.0,0.002924]
[1721184329046,1.47737513,65920.0,65919.0,0.002924]
[1721184329622,1.56825974,65920.0,65919.0,0.002924]
[1721184329851,2.40342074,65920.0,65919.0,0.002924]
[1721184330295,2.35186454,65920.0,65919.0,0.002924]
[1721184330496,2.40357885,65920.0,65919.0,0.002924]
[1721184330711,1.25788,65902.0,65901.0,0.000924]
[1721184330920,0.151758,65894.0,65893.0,0.46304871]
[1721184331156,0.151793,65879.0,65875.0,0.0607]
[1721184331386,0.303567,65884.0,65874.0,0.46304871]
[1721184331594,0.15438174,65883.0,65872.0,0.01879402]
[1721184331802,0.151802,65876.0,65872.0,0.01879402]
[1721184331990,0.00277097,65875.0,65869.0,0.151815]
[1721184332129,0.00277097,65875.0,65867.0,0.009196]
[1721184332340,0.303593,65878.0,65868.0,0.151817]
[1721184332341,0.00277097,65877.0,65868.0,0.151817]
[1721184333419,0.00277097,65877.0,65867.0,0.009196]
[1721184333420,0.151805,65874.0,65867.0,0.009196]
[1721184333667,0.00277097,65873.0,65867.0,0.009196]
[1721184334130,0.00277097,65873.0,65867.0,0.161015]
[1721184334357,0.00277097,65873.0,65868.0,0.151817]
[1721184334593,0.00377097,65874.0,65868.0,0.151817]
[1721184334849,0.00277097,65874.0,65868.0,0.151817]
[1721184335078,0.15457597,65874.0,65868.0,0.151817]
[1721184335521,0.15457597,65874.0,65867.0,0.009196]
[1721184335741,0.15757597,65874.0,65867.0,0.009196]
[1721184336257,0.15457597,65874.0,65867.0,0.009196]
[1721184336494,0.151808,65873.0,65867.0,0.009196]
[1721184336739,0.455455,65868.0,65867.0,0.009196]
[1721184336948,0.151818,65868.0,65867.0,0.009196]
[1721184337640,0.455455,65868.0,65867.0,0.009196]
[1721184338020,0.456455,65868.0,65867.0,0.010196]
[1721184338229,0.61083674,65868.0,65867.0,0.010196]
[1721184338568,0.91447374,65868.0,65867.0,0.010196]
[1721184339203,0.61083674,65868.0,65867.0,0.010196]
[1721184339735,0.61083674,65868.0,65867.0,0.014196]
[1721184340140,0.001,65868.0,65867.0,0.014196]
[1721184340563,0.456455,65868.0,65867.0,0.010196]
[1721184340767,0.455455,65868.0,65867.0,0.009196]
[1721184340926,0.457455,65868.0,65867.0,0.009196]
[1721184341552,0.002,65868.0,65867.0,0.009196]
[1721184343258,0.002,65868.0,65867.0,0.071596]
[1721184343874,0.002,65868.0,65867.0,0.223417]
[1721184345283,0.002,65868.0,65867.0,0.527059]
[1721184346432,0.00277097,65874.0,65868.0,0.151817]
[1721184346750,0.151807,65873.0,65867.0,0.072596]
[1721184346954,0.00277097,65872.0,65867.0,0.009196]
[1721184347620,0.15457997,65872.0,65867.0,0.009196]
[1721184347796,0.151809,65872.0,65867.0,0.009196]
[1721184347996,0.151811,65871.0,65867.0,0.010196]
[1721184348199,0.001,65868.0,65867.0,0.010196]
[1721184348592,0.214818,65868.0,65867.0,0.010196]
[1721184348796,0.517455,65868.0,65867.0,0.010196]
[1721184349003,0.303629,65870.0,65867.0,0.010196]
[1721184349226,0.151817,65869.0,65867.0,0.011196]
[1721184349458,0.151817,65869.0,65867.0,0.010196]
[1721184349655,0.151817,65869.0,65867.0,0.009196]
[1721184350349,0.151818,65868.0,65867.0,0.009196]
[1721184350729,0.153818,65868.0,65867.0,0.009196]
[1721184352162,0.151818,65868.0,65867.0,0.009196]
[1721184352368,0.153818,65868.0,65867.0,0.009196]
[1721184352856,0.002,65868.0,65867.0,0.009196]
[1721184353667,0.153818,65868.0,65867.0,0.009196]
[1721184354940,3.957455,65868.0,65867.0,0.009196]
[1721184355172,4.034155,65868.0,65867.0,0.009196]
[1721184355350,4.337792,65868.0,65867.0,0.009196]
[1721184355953,3.653818,65868.0,65867.0,0.009196]
[1721184356360,3.957455,65868.0,65867.0,0.13526518]
[1721184357514,3.653818,65868.0,65867.0,0.13526518]
[1721184358790,3.653818,65868.0,65867.0,0.13526519]
[1721184358961,3.957455,65868.0,65867.0,0.13526519]
[1721184359954,3.957455,65868.0,65867.0,0.009196]
[1721184360157,3.957455,65868.0,65867.0,0.13526519]
[1721184361110,4.41547374,65868.0,65867.0,0.13526519]
[1721184361291,4.55477374,65868.0,65867.0,0.13526519]
[1721184362226,3.502,65868.0,65867.0,0.13526519]
[1721184364351,3.502,65868.0,65867.0,0.13526708]
[1721184364633,3.502,65868.0,65867.0,0.13526664]
[1721184366717,3.653818,65868.0,65867.0,0.13526664]
[1721184366881,4.021355,65868.0,65867.0,0.13526664]
[1721184367109,4.61431005,65868.0,65867.0,0.13526664]
[1721184367273,4.61431005,65868.0,65867.0,0.009196]
[1721184367470,4.61431005,65868.0,65867.0,0.13527367]
[1721184369429,4.6397015,65868.0,65867.0,0.13527367]
[1721184369833,4.9433385,65868.0,65867.0,0.13527367]
[1721184370668,4.94332824,65868.0,65867.0,0.13527539]
[1721184372469,4.94332824,65868.0,65867.0,0.009196]
[1721184372877,4.94332824,65868.0,65867.0,0.13528343]
[1721184373776,4.94334979,65868.0,65867.0,0.13528343]
[1721184377017,4.94333071,65868.0,65867.0,0.13527833]
[1721184377340,4.49929371,65868.0,65867.0,0.13527833]
[1721184378488,4.49929371,65868.0,65867.0,0.009196]
[1721184380152,4.49929395,65868.0,65867.0,0.009196]
[1721184380583,4.19565695,65868.0,65867.0,0.1352736]
[1721184381501,4.19565695,65868.0,65867.0,0.009196]
[1721184381659,4.19565695,65868.0,65867.0,0.13527334]
[1721184382672,4.13722064,65868.0,65867.0,0.009196]
[1721184383103,4.19569717,65868.0,65867.0,0.009196]
[1721184383312,4.49933417,65868.0,65867.0,0.009196]
[1721184385499,4.84849816,65868.0,65867.0,0.009196]
[1721184386483,4.80297117,65868.0,65867.0,0.009196]
[1721184388543,4.84849823,65868.0,65867.0,0.009196]
[1721184388774,4.54486123,65868.0,65867.0,0.009196]
[1721184388977,4.54486123,65868.0,65867.0,0.604159]
[1721184388978,3.5273839,65868.0,65867.0,0.604159]
[1721184389179,3.5273839,65868.0,65867.0,1.03387047]
[1721184389593,3.5273839,65868.0,65867.0,0.907801]
[1721184389594,3.502,65868.0,65867.0,0.907801]